[Event "44th Chess Olympiad Open 2022"]
[Site "Chennai"]
[Date "2022.07.30"]
[Round "2.16"]
[White "Hernandez Guerrero, Gilberto"]
[Black "Ganguly, Surya Shekhar"]
[Result "1/2-1/2"]
[WhiteElo "2560"]
[BlackElo "2608"]
[Annotator "TA"]
[PlyCount "121"]
[EventDate "2022.??.??"]
[TimeControl "60"]

{[%evp 12,121,11,12,20,20,0,4,6,0,0,-3,19,12,12,0,15,-14,0,0,0,-4,0,0,0,5,4,0,
0,0,8,10,0,-10,-15,-17,-27,-19,-14,-22,0,0,0,0,0,-17,0,0,0,0,-12,0,0,0,0,0,0,0,
24,19,33,22,38,36,142,128,366,342,369,368,347,353,356,343,359,358,383,306,408,
407,386,0,162,0,367,362,853,755,978,893,4339,1649,2145,1908,1791,1718,1494,585,
5417,138,138,138,138,8,8,8,8,8,8,8,8,-8]} 1. e4 {[%emt 0:00:18]} e6 {[%emt 0:
00:00]} 2. d4 {[%emt 0:02:22]} d5 {[%emt 0:00:08]} 3. Nc3 {[%emt 0:00:20][%cal
Yb1c3,Yc3e4,Ye4g3,Yg3f1,Yf1d2]} Nf6 {[%emt 0:00:11]} 4. Bg5 {[%emt 0:00:00]}
dxe4 {[%emt 0:00:50]} 5. Nxe4 {[%emt 0:00:20]} Be7 {[%emt 0:00:07]} 6. Bxf6 {
[%emt 0:01:49]} gxf6 {[%emt 0:00:08]} 7. Bc4 {[%emt 0:03:49]} f5 {[%emt 0:07:
10] C13: French: Classical System: 4 Bg5 Be7, Alekhine-Chatard Attack.} 8. Ng3
{[%emt 0:05:05]} Qd6 {[%emt 0:08:27]} 9. c3 {[%emt 0:07:08] [#] Against Qb4}
Nd7 $146 {[%emt 0:03:15][%cal Yh7h5]} ({Predecessor:} 9... a6 10. a4 c5 11. d5
e5 12. Qe2 h5 13. h4 e4 14. Nxh5 Kd8 15. g3 Nd7 {0-1 (46) Bartel, M (2627)
-Tomczak,J (2554) Poznan 2015}) 10. Nf3 {[%emt 0:03:34]} h5 {[%emt 0:00:00]}
11. Qe2 {[%emt 0:06:44]} Qf4 {[%emt 0:07:13]} 12. Nf1 {[%emt 0:12:15]} a6 {
[%emt 0:06:20]} 13. g3 {[%emt 0:02:55]} Qh6 {[%emt 0:10:19]} 14. N1d2 {[%emt 0:
15:03]} b5 {[%emt 0:01:17]} 15. Bd3 {[%emt 0:01:19]} Bb7 {[%emt 0:00:00]} 16.
O-O-O {[%emt 0:04:02]} c5 {[%emt 0:08:08]} 17. Rhe1 {[%emt 0:00:09]} O-O {
[%emt 0:05:55]} 18. Kb1 {[%emt 0:02:16]} Rfe8 {[%emt 0:03:42]} 19. dxc5 {
[%emt 0:00:51]} Nxc5 {[%emt 0:00:34]} 20. Bc2 {[%emt 0:00:09]} a5 {[%emt 0:00:
00]} 21. Ne5 {[%emt 0:02:02]} b4 {[%emt 0:00:34]} 22. cxb4 {[%emt 0:07:25]}
axb4 {[%emt 0:00:04]} 23. Nb3 {[%emt 0:00:17]} Bd5 {[%emt 0:02:00][%cal Ye7f6]}
24. f4 {[%emt 0:00:20][%cal Yd1d5]} Ne4 {[%emt 0:06:26]} 25. Nd7 {[%emt 0:00:
00]} Rad8 {[%emt 0:05:19]} 26. Nb6 {[%emt 0:00:33]} Bf6 {[%emt 0:00:22][%cal
Yf6c3]} 27. Nxd5 {[%emt 0:05:59]} exd5 {[%emt 0:00:03]} 28. Qb5 {[%emt 0:00:11]
[%csl Yb4,Yd5]} (28. Qf1 $5 {[%cal Rb3d4]}) 28... Bg7 {[%emt 0:01:14] And now .
..Qf6 would win.} 29. Bxe4 {[%emt 0:05:57]} Qf6 {[%emt 0:00:30][%csl Gg7][%cal
Rf6b2]} 30. Re2 {[%emt 0:00:22]} dxe4 {[%emt 0:00:29]} 31. Rxd8 {[%emt 0:00:00]
} Rxd8 {[%emt 0:00:37]} 32. Qxb4 {[%emt 0:00:22]} Qa6 {[%emt 0:03:03]} 33. Nc1
{[%emt 0:01:13]} Rd1 {[%emt 0:03:17] ( -> ...Qxe2)} 34. Rd2 {[%emt 0:00:00]}
Qf1 {[%emt 0:00:51][%csl Gf1][%cal Rd1c1]} 35. Rxd1 {[%emt 0:00:49]} Qxd1 $11 {
[%emt 0:00:02] Endgame KQB-KQN} 36. Qc5 {[%emt 0:00:10]} Qd7 {[%emt 0:01:16]
Prevents Qc8+.} 37. a4 {[%emt 0:02:25][%cal Ya2a4,Ya4b5]} Bd4 {[%emt 0:01:33]}
(37... Qxa4 $14 38. Qc8+ Bf8) 38. Qb5 $1 $16 {[%emt 0:00:48]} Qxb5 {[%emt 0:01:
52]} (38... Qe6 $16 {keeps fighting.} 39. a5 e3) 39. axb5 {[%emt 0:00:07] KB-KN
} Kf8 {[%emt 0:00:03]} 40. Ne2 {[%emt 0:00:00]} Bf2 {[%emt 0:00:46]} 41. Kc2 {
[%emt 0:31:51]} Ke7 {[%emt 0:30:09]} 42. Kc3 {[%emt 0:01:40]} Kd6 {[%emt 0:02:
29]} 43. Kc4 {[%emt 0:01:59]} (43. Nd4 Bxd4+ 44. Kxd4 Kc7 $11) 43... Be3 {
[%emt 0:00:00]} 44. b3 {[%emt 0:00:00]} (44. Nd4 Bxd4 45. Kxd4 Kc7 $11) 44...
Bf2 {[%emt 0:00:00]} 45. Nc3 $1 {[%emt 0:00:00]} (45. Nd4 Bxd4 46. Kxd4 Kc7 $11
) 45... Bg1 {[%emt 0:00:00]} 46. Ne2 $2 {[%emt 0:00:00]} (46. h3 $1 $18 {
Threatens to win with Nd5.} f6 47. b4) 46... Be3 $2 {[%emt 0:00:00]} (46... Bf2
$1 $11) 47. Nc3 $2 {[%emt 0:00:00]} (47. Nd4 Bxd4 48. Kxd4 Kc7 $11) (47. b4 $1)
47... Bg1 $18 {[%emt 0:00:00]} 48. h3 $1 {[%emt 0:00:00]} Bf2 $2 {[%emt 0:00:
00]} (48... Ba7 49. Nd5 Bf2) 49. g4 $1 {[%emt 0:00:00]} hxg4 {[%emt 0:00:00]}
50. hxg4 {[%emt 0:00:00]} Ke6 {[%emt 0:00:00]} 51. gxf5+ $1 {[%emt 0:00:00]}
Kxf5 {[%emt 0:00:00] [#]} 52. Kd5 $1 {[%emt 0:00:00]} Kxf4 {[%emt 0:00:00]} 53.
Nxe4 {[%emt 0:00:00]} Ba7 {[%emt 0:00:00]} 54. Nd6 {[%emt 0:00:00]} (54. Nf6
$142 {Intending Nd7 and mate.} Ke3 55. Kc4 (55. Nd7 Kd3 $11)) 54... f6 {
[%emt 0:00:00]} 55. Ke6 $2 {[%emt 0:00:55]} (55. Nc8 $18 Bb8 56. b6) 55... Ke3
$16 {[%emt 0:00:00] [#]} 56. Nc8 $1 {[%emt 0:02:51]} ({Don't play} 56. Kxf6 $6
Kd4 $11) 56... Bb8 {[%emt 0:00:00]} 57. Ne7 {[%emt 0:00:54]} ({Reject} 57. Kxf6
$6 Kd4 $11) ({White has to play} 57. b6 $16 {Hoping for Ne7.} Kd2 58. b7 (58.
Kxf6 Kc3 $11)) 57... Kd4 $11 {[%emt 0:00:00] The position is equal.} 58. b6 {
[%emt 0:02:02]} Kc5 {[%emt 0:00:00]} 59. Nd5 {[%emt 0:01:01]} f5 {[%emt 0:00:
00]} 60. b4+ {[%emt 0:00:10]} Kc6 {[%emt 0:00:00]} 61. Kxf5 {[%emt 0:00:50]
Weighted Error Value: White=0.38/ Black=0.23 (precise)} 1/2-1/2

[Event "44th Chess Olympiad Open 2022"]
[Site "Chennai"]
[Date "2022.07.30"]
[Round "2.16"]
[White "Diaz Rosas, Julio Cesar"]
[Black "Gupta, Abhijeet"]
[Result "1/2-1/2"]
[WhiteElo "2328"]
[BlackElo "2627"]
[Annotator "ChessBase"]
[PlyCount "148"]
[EventDate "2022.??.??"]
[TimeControl "60"]

1. e4 {[%emt 0:00:04]} c5 {[%emt 0:00:30]} 2. Nf3 {[%emt 0:00:11]} d6 {[%emt 0:
00:00]} 3. d4 {[%emt 0:01:38]} cxd4 {[%emt 0:01:39]} 4. Nxd4 {[%emt 0:00:07]}
Nf6 {[%emt 0:00:14]} 5. Nc3 {[%emt 0:00:08]} Nc6 {[%emt 0:00:13]} 6. Bg5 {
[%emt 0:01:48]} e6 {[%emt 0:01:14]} 7. Qd2 {[%emt 0:00:09]} a6 {[%emt 0:00:06]}
8. O-O-O {[%emt 0:00:08]} Bd7 {[%emt 0:01:47]} 9. Kb1 {[%emt 0:02:08]} Be7 {
[%emt 0:01:04]} 10. Nxc6 {[%emt 0:01:03]} Bxc6 {[%emt 0:00:10]} 11. f3 {
[%emt 0:00:09]} b5 {[%emt 0:02:15]} 12. h4 {[%emt 0:00:30]} h6 {[%emt 0:00:25]}
13. Be3 {[%emt 0:00:12]} h5 {[%emt 0:00:04]} 14. Ne2 {[%emt 0:00:21]} Qc7 {
[%emt 0:00:34]} 15. Nd4 {[%emt 0:00:24]} Bd7 {[%emt 0:00:06]} 16. Bg5 {[%emt 0:
00:00]} Rb8 {[%emt 0:01:27]} 17. g3 {[%emt 0:15:39]} a5 {[%emt 0:03:02]} 18.
Bh3 {[%emt 0:01:11]} b4 {[%emt 0:02:00]} 19. g4 {[%emt 0:10:00]} hxg4 {[%emt 0:
00:00]} 20. Bxg4 {[%emt 0:00:26]} a4 {[%emt 0:02:01]} 21. Rhe1 {[%emt 0:05:47]}
a3 {[%emt 0:08:51]} 22. b3 {[%emt 0:05:21]} Qc3 {[%emt 0:01:20]} 23. Qxc3 {
[%emt 0:06:42]} bxc3 {[%emt 0:00:54]} 24. Rg1 {[%emt 0:01:19]} Nxg4 {[%emt 0:
00:00]} 25. Rxg4 {[%emt 0:00:25]} g6 {[%emt 0:00:42]} 26. Ne2 {[%emt 0:04:52]}
Rc8 {[%emt 0:00:10]} 27. Bc1 {[%emt 0:09:48]} e5 {[%emt 0:04:49]} 28. Rg2 {
[%emt 0:01:11]} Rxh4 {[%emt 0:17:16]} 29. Bxa3 {[%emt 0:01:26]} Bb5 {[%emt 0:
00:00]} 30. Bb4 {[%emt 0:03:15]} d5 {[%emt 0:01:20]} 31. Nxc3 {[%emt 0:03:05]}
Bxb4 {[%emt 0:01:20]} 32. Nxb5 {[%emt 0:00:04]} d4 {[%emt 0:00:10]} 33. a3 {
[%emt 0:03:57]} Be7 {[%emt 0:01:17]} 34. c3 {[%emt 0:01:00]} dxc3 {[%emt 0:00:
00]} 35. Rc2 {[%emt 0:01:58]} Rh3 {[%emt 0:07:01]} 36. Rd3 {[%emt 0:01:25]} f5
{[%emt 0:00:31]} 37. Rd5 {[%emt 0:09:01]} Rxf3 {[%emt 0:08:39]} 38. Rxe5 {
[%emt 0:00:43]} Kf8 {[%emt 0:04:53]} 39. exf5 {[%emt 0:00:18]} g5 {[%emt 0:00:
00]} 40. Re4 {[%emt 0:01:28]} Bf6 {[%emt 0:03:42]} 41. Nd6 {[%emt 0:32:38]} Rd8
{[%emt 0:31:17]} 42. Re6 {[%emt 0:01:40]} Be7 {[%emt 0:00:45]} 43. Nc4 {
[%emt 0:00:00]} Rxf5 {[%emt 0:00:00]} 44. Rxc3 {[%emt 0:00:00]} Bf6 {[%emt 0:
00:00]} 45. Rce3 {[%emt 0:00:00]} g4 {[%emt 0:00:00]} 46. Kc2 {[%emt 0:00:00]}
Kg7 {[%emt 0:00:00]} 47. Re2 {[%emt 0:00:00]} Rf3 {[%emt 0:00:00]} 48. R6e3 {
[%emt 0:00:00]} Bd4 {[%emt 0:00:00]} 49. Rxf3 {[%emt 0:00:00]} gxf3 {[%emt 0:
00:00]} 50. Re4 {[%emt 0:00:00]} f2 {[%emt 0:00:00]} 51. Rf4 {[%emt 0:00:00]}
Kg6 {[%emt 0:00:00]} 52. Rf3 {[%emt 0:00:00]} Kg5 {[%emt 0:00:00]} 53. Nd2 {
[%emt 0:00:00]} Kg4 {[%emt 0:00:00]} 54. Rf7 {[%emt 0:00:19]} Kg3 {[%emt 0:00:
00]} 55. Ne4+ {[%emt 0:00:09]} Kg2 {[%emt 0:00:04]} 56. Nxf2 {[%emt 0:00:06]}
Rc8+ {[%emt 0:00:55]} 57. Kd3 {[%emt 0:01:12]} Bxf2 {[%emt 0:00:05]} 58. Rf4 {
[%emt 0:00:13]} Kf1 {[%emt 0:00:24]} 59. Rc4 {[%emt 0:00:19]} Rd8+ {[%emt 0:00:
00]} 60. Kc2 {[%emt 0:00:09]} Ke2 {[%emt 0:00:07]} 61. b4 {[%emt 0:00:18]} Ra8
{[%emt 0:02:51]} 62. Kb3 {[%emt 0:00:22]} Kd3 {[%emt 0:00:05]} 63. Rc3+ {
[%emt 0:00:26]} Ke4 {[%emt 0:00:05]} 64. a4 {[%emt 0:00:26]} Bd4 {[%emt 0:00:
00]} 65. Rh3 {[%emt 0:00:32]} Rg8 {[%emt 0:06:06]} 66. a5 {[%emt 0:00:19]} Rg1
{[%emt 0:00:51]} 67. Kc4 {[%emt 0:00:59]} Bf2 {[%emt 0:01:00]} 68. Rb3 {
[%emt 0:02:21]} Ra1 {[%emt 0:00:31]} 69. Rb2 {[%emt 0:00:39]} Rc1+ {[%emt 0:00:
00]} 70. Kb3 {[%emt 0:00:24]} Be3 {[%emt 0:01:14]} 71. Rc2 {[%emt 0:00:27]} Rd1
{[%emt 0:00:23]} 72. Kc4 {[%emt 0:00:27]} Rd8 {[%emt 0:00:34]} 73. b5 {[%emt 0:
00:00]} Rc8+ {[%emt 0:00:44]} 74. Kb3 {[%emt 0:00:05]} Ke5 {[%emt 0:01:58]}
1/2-1/2

[Event "44th Chess Olympiad Open 2022"]
[Site "Chennai"]
[Date "2022.07.30"]
[Round "2.17"]
[White "Saric, Ivan"]
[Black "Petkov, Momchil"]
[Result "1/2-1/2"]
[WhiteElo "2680"]
[BlackElo "2510"]
[Annotator "TA"]
[PlyCount "112"]
[EventDate "2022.??.??"]
[TimeControl "60"]

{[%evp 9,112,8,22,20,33,27,29,5,8,14,15,26,55,48,55,58,59,54,54,60,68,49,51,49,
56,68,45,44,142,160,163,160,178,104,193,196,166,0,11,5,5,-35,-29,-58,-41,-38,
-45,-29,-28,-24,-9,-8,0,0,0,0,0,0,0,0,0,0,8,0,13,10,18,8,8,8,8,8,14,14,18,18,
20,20,18,8,8,8,8,8,8,8,8,8,8,8,8,8,8,0,0,0,0,0,0,0,0,0,0,-3,-3]} 1. e4 {
[%emt 0:00:02]} c5 {[%emt 0:00:15]} 2. Nf3 {[%emt 0:00:04]} d6 {[%emt 0:00:07]}
3. Bb5+ {[%emt 0:00:17]} Nd7 {[%emt 0:00:24]} 4. a4 {[%emt 0:00:10]} Ngf6 {
[%emt 0:00:41]} 5. Nc3 {[%emt 0:00:05]} g6 {[%emt 0:00:16]} 6. O-O {[%emt 0:00:
00] B51: Sicilian: Moscow Variation (3 Bb5+) without 3...Bd7.} Bg7 {[%emt 0:00:
00]} 7. Re1 {[%emt 0:00:12]} O-O {[%emt 0:00:59]} 8. d4 {[%emt 0:00:44] White
has an edge.} cxd4 {[%emt 0:02:26]} 9. Nxd4 {[%emt 0:00:17]} Nc5 {[%emt 0:00:
00]} 10. Bf1 {[%emt 0:02:26]} Bd7 {[%emt 0:08:00] [#]} 11. f3 $146 {[%emt 0:00:
00]} ({Predecessor:} 11. a5 Rc8 12. f3 a6 13. Be3 Re8 14. Qd2 Qc7 15. Ra3 Qb8
16. Qf2 e5 17. Nb3 {1-0 (48) Bharath,S (2479)-Papadiamandis,E (2369) Biel 2022}
) 11... Nh5 {[%emt 0:23:02]} 12. a5 {[%emt 0:05:05]} Ne6 {[%emt 0:02:51]} 13.
Nxe6 {[%emt 0:03:47]} fxe6 {[%emt 0:00:39]} 14. Be3 {[%emt 0:01:32]} b5 {
[%emt 0:06:55]} 15. Bxb5 {[%emt 0:07:58] White is more active.} Bxb5 {[%emt 0:
00:00]} 16. Nxb5 {[%emt 0:00:08]} Bxb2 {[%emt 0:00:06]} 17. Rb1 {[%emt 0:04:01]
} Be5 {[%emt 0:01:45]} 18. a6 {[%emt 0:00:40]} Qc8 {[%emt 0:02:25] [#]} (18...
Qa5 $14) 19. c3 $1 $16 {[%emt 0:11:03]} Nf4 {[%emt 0:10:47]} 20. g3 {[%emt 0:
00:00]} Nh5 {[%emt 0:01:06][%cal Yf4h5,Yh5f6,Yf6g4]} 21. f4 {[%emt 0:00:00]} (
21. Bxa7 $6 Qxa6 22. Bd4 Rfc8 $14) (21. Kg2 $18) 21... Bg7 {[%emt 0:00:00]} (
21... Nxf4 $16 22. gxf4 Bxf4) 22. Qb3 $18 {[%emt 0:00:42]} Kh8 {[%emt 0:03:53]
[#]} 23. Rf1 $2 {[%emt 0:18:33]} (23. e5 $1 $18 {[%cal Re5d6]}) 23... Nf6 $11 {
[%emt 0:02:54]} 24. Nd4 {[%emt 0:05:07]} ({But not} 24. Bxa7 Nxe4 25. Be3 Rxa6
$17) ({Of course not} 24. Nxa7 Qxa6 25. Nb5 Ng4 $17) 24... Ng4 $1 {[%emt 0:02:
43]} 25. Bd2 {[%emt 0:02:53]} Qxa6 {[%emt 0:01:08] ...Bxd4+ is the strong
threat.} 26. Qb5 {[%emt 0:07:14]} ({Not} 26. Qxe6 $2 Bxd4+ 27. cxd4 Qe2 28.
Qxg4 Qxg4 $19) 26... Bxd4+ {[%emt 0:02:06]} 27. cxd4 {[%emt 0:00:00]} Qxb5 {
[%emt 0:02:03]} 28. Rxb5 {[%emt 0:00:05]} Rfc8 {[%emt 0:00:55]} 29. f5 $1 {
[%emt 0:05:51]} gxf5 {[%emt 0:03:35]} 30. exf5 {[%emt 0:00:11] The position is
equal.} Rc2 {[%emt 0:02:03]} 31. Bg5 {[%emt 0:03:22]} Nxh2 {[%emt 0:01:01]} 32.
Rf2 {[%emt 0:00:39]} Rxf2 {[%emt 0:00:23]} 33. Kxf2 {[%emt 0:00:01]} exf5 {
[%emt 0:01:44]} 34. Bxe7 {[%emt 0:00:25] Endgame KRB-KRN} a5 {[%emt 0:01:39]}
35. Rxf5 {[%emt 0:05:01]} Kg8 {[%emt 0:00:00]} 36. Bxd6 {[%emt 0:00:44]
Threatens to win with Kg2.} Ng4+ {[%emt 0:00:33]} 37. Kf3 {[%emt 0:02:40]} Nh6
{[%emt 0:00:03]} 38. Rg5+ {[%emt 0:00:37]} Kf7 {[%emt 0:00:06]} 39. Ba3 {
[%emt 0:02:00]} a4 {[%emt 0:00:51]} 40. Kf4 {[%emt 0:00:00]} Rg8 {[%emt 0:01:
16]} 41. Rd5 {[%emt 0:10:01]} Rg4+ {[%emt 0:03:13]} 42. Kf3 {[%emt 0:00:06]}
Rg6 $1 {[%emt 0:02:32]} 43. Ra5 {[%emt 0:01:31]} Rf6+ {[%emt 0:02:12]} 44. Ke4
{[%emt 0:00:06]} Re6+ {[%emt 0:00:17]} 45. Kd5 {[%emt 0:01:41]} Nf5 {[%emt 0:
00:27]} 46. Rxa4 {[%emt 0:02:26]} h5 {[%emt 0:00:00]} 47. Ra7+ {[%emt 0:04:34]}
Kf6 {[%emt 0:00:06]} 48. Ra8 {[%emt 0:01:14] And now Rf8+ would win.} Re3 {
[%emt 0:02:07]} 49. Rf8+ {[%emt 0:04:07]} Kg6 {[%emt 0:00:07]} 50. Bc1 {
[%emt 0:04:31]} Rd3 {[%emt 0:03:11]} 51. Rg8+ {[%emt 0:06:26]} Kf7 {[%emt 0:01:
46]} 52. Rg5 {[%emt 0:00:03]} Kf6 {[%emt 0:00:00]} 53. Rxh5 {[%emt 0:02:28]}
Rxd4+ {[%emt 0:00:07]} 54. Kc5 {[%emt 0:00:02][%cal Yh5f5] White threatens
Rxf5+! and mate.} Rg4 {[%emt 0:00:17]} 55. Bf4 {[%emt 0:00:39]} Nxg3 {[%emt 0:
00:08]} 56. Bxg3 {[%emt 0:00:03]} Rxg3 {[%emt 0:00:00] Weighted Error Value:
White=0.11 (very precise) /Black=0.07 (flawless)} 1/2-1/2

[Event "44th Chess Olympiad Open 2022"]
[Site "Chennai"]
[Date "2022.07.30"]
[Round "2.17"]
[White "Kozul, Zdenko"]
[Black "Yordanov, Lachezar"]
[Result "0-1"]
[WhiteElo "2602"]
[BlackElo "2316"]
[Annotator "TA"]
[PlyCount "43"]
[EventDate "2022.??.??"]
[TimeControl "60"]

{[%evp 12,43,21,18,18,14,17,0,0,-43,-41,-114,-112,-102,-116,-141,-92,-125,-133,
-116,-130,-120,-71,-110,-102,-199,-206,-239,-192,-183,1686,539,512,488]} 1. Nf3
{[%emt 0:00:13]} Nf6 {[%emt 0:00:08]} 2. g3 {[%emt 0:00:38]} d5 {[%emt 0:00:32]
} 3. Bg2 {[%emt 0:01:09]} e6 {[%emt 0:00:09]} 4. O-O {[%emt 0:00:31]} Be7 {
[%emt 0:00:06]} 5. d4 {[%emt 0:02:11]} O-O {[%emt 0:00:22]} 6. c4 {[%emt 0:00:
00]} c6 {[%emt 0:00:05]} 7. Nc3 {[%emt 0:01:39]} a5 {[%emt 0:00:21] E06:
Closed Catalan: Early deviations.} 8. b3 {[%emt 0:05:07]} b6 {[%emt 0:04:19]}
9. Qd3 {[%emt 0:06:26]} Ba6 {[%emt 0:02:03] The position is equal.} 10. e4 {
[%emt 0:03:12]} b5 {[%emt 0:01:14][%cal Rb5c4] [#]} 11. Ne5 $146 {[%emt 0:00:
00]} ({Reject} 11. cxb5 cxb5 12. Qe3 b4 $17) (11. exd5 $15 bxc4 12. bxc4 exd5
13. Re1) ({Predecessor:} 11. exd5 bxc4 12. bxc4 cxd5 13. Ne5 dxc4 14. Qe3 Ra7
15. d5 Rc7 16. dxe6 fxe6 17. Rd1 {½-½ (33) Batchuluun,T (2536)-Jumabayev,R 
(2651) Chess.com INT 2021}) 11... bxc4 $1 $17 {[%emt 0:03:50]} 12. bxc4 {
[%emt 0:00:09]} Nfd7 $1 {[%emt 0:00:04]} 13. exd5 {[%emt 0:09:15][%cal Ye5f7] 
[#] And now Nxf7! would win.} exd5 {[%emt 0:17:45]} (13... Nxe5 $142 $1 14.
dxe5 exd5) 14. Rd1 {[%emt 0:01:14]} Nxe5 {[%emt 0:01:55]} 15. dxe5 {[%emt 0:00:
00][%cal Rc3d5]} Bxc4 {[%emt 0:00:59]} 16. Qf5 {[%emt 0:00:51]} Qe8 {[%emt 0:
00:00]} (16... Nd7 $142 17. Bh3 Nc5) 17. Rd4 {[%emt 0:26:00][%cal Yc1h6]} Ba6 {
[%emt 0:10:23]} 18. Qh5 {[%emt 0:02:20]} (18. Bf4 $17) 18... Nd7 $19 {[%emt 0:
00:00]} 19. Bd2 {[%emt 0:09:10]} f6 {[%emt 0:06:00]} 20. Qxe8 {[%emt 0:00:44]}
Rd8 {[%emt 0:00:05]} 21. Qxf8+ Rxf8 {[%emt 0:00:29]} 22. exf6 {[%emt 0:04:42]
Weighted Error Value: White=0.61/Black=0.12 (very precise) . Loss on time!?}
0-1

[Event "44th Chess Olympiad Open 2022"]
[Site "Chennai"]
[Date "2022.07.30"]
[Round "2.17"]
[White "Stoyanov, Tsvetan"]
[Black "Brkic, Ante"]
[Result "1-0"]
[WhiteElo "2450"]
[BlackElo "2611"]
[Annotator "TA"]
[PlyCount "99"]
[EventDate "2022.??.??"]
[TimeControl "60"]

{[%evp 15,99,13,19,33,26,18,16,20,24,0,0,0,0,0,17,24,27,22,35,0,0,0,0,0,0,0,0,
0,87,77,78,80,81,52,96,91,98,91,141,112,127,0,40,41,193,175,171,55,397,398,397,
403,389,398,365,258,275,262,264,253,330,341,304,227,229,65,56,65,183,208,290,
138,264,271,263,199,405,244,233,212,491,482,1687,912,29984,29985]} 1. e4 {
[%emt 0:00:07]} c5 {[%emt 0:00:06]} 2. Nf3 {[%emt 0:00:17]} d6 {[%emt 0:00:07]}
3. d4 {[%emt 0:00:20]} cxd4 {[%emt 0:00:05]} 4. Nxd4 {[%emt 0:00:08]} Nf6 {
[%emt 0:00:07]} 5. Nc3 {[%emt 0:00:10]} a6 {[%emt 0:00:05]} 6. Be3 {[%emt 0:00:
00]} e5 {[%emt 0:01:00]} 7. Nf3 {[%emt 0:00:17]} Be7 {[%emt 0:02:03]} 8. Bc4 {
[%emt 0:00:32]} Be6 {[%emt 0:00:44]} 9. Bxe6 {[%emt 0:06:34] B90: Sicilian
Najdorf: Unusual White 6th moves, 6 Be3 Ng4 and 6 Be3 e5.} fxe6 {[%emt 0:00:32]
[%cal Yf7e6,Ye6d5,Yd5d4]} 10. Ng5 {[%emt 0:01:13]} Qd7 {[%emt 0:09:22]} 11. Qf3
{The position is equal.} d5 {[%emt 0:00:00]} 12. exd5 {[%emt 0:07:23]} exd5 {
[%emt 0:00:00]} 13. O-O-O {[%emt 0:03:45][%cal Rc3d5]} d4 {[%emt 0:00:00]
Threatens to win with ...0-0.} 14. Nce4 {[%emt 0:07:41]} Nc6 {[%emt 0:00:00]} (
14... O-O $5 {[%cal Rh7h6]}) 15. Bd2 {[%emt 0:06:04]} O-O {[%emt 0:29:37]} 16.
Nxf6+ {[%emt 0:13:46]} Bxf6 {[%emt 0:00:07]} 17. Ne4 {[%emt 0:04:29]} Be7 {
[%emt 0:02:18]} 18. Qb3+ {[%emt 0:07:42]} Kh8 {[%emt 0:00:06] [#]} 19. h4 $146
{[%emt 0:01:52]} ({Predecessor:} 19. f3 b5 20. h4 Rac8 21. Kb1 b4 22. Qd3 Qd5
23. Ng5 Qg8 24. Rde1 a5 25. f4 Bxg5 26. hxg5 exf4 {½-½ (59) Kotronias,V 
(2465)-Colpe,M (2348) Hamburg 2022}) 19... a5 {[%emt 0:04:29]} 20. Ng5 {
[%emt 0:13:46]} Qf5 {[%emt 0:10:27] Against Nf7+} 21. g4 {[%emt 0:05:01]} Qxg4
{[%emt 0:01:31]} (21... Qg6 $11 {keeps the balance.}) 22. Nf7+ $16 {[%emt 0:00:
00]} Rxf7 {[%emt 0:00:01]} 23. Qxf7 {[%emt 0:00:01]} Rf8 {[%emt 0:00:11]} 24.
Qb3 {[%emt 0:01:13]} e4 {[%emt 0:11:20]} 25. Qxb7 {[%emt 0:08:00]} Qe6 {
[%emt 0:00:02][%cal Ye6a2]} 26. Qb3 {[%emt 0:00:23]} Qd6 {[%emt 0:01:23]} (
26... Qf5 $142) 27. Rhe1 {[%emt 0:01:30]} Rb8 {[%emt 0:02:28]} 28. Qc4 {
[%emt 0:05:32]} (28. Qg3 $1 $16 {Black must now prevent Bf4.} Qxg3 29. fxg3)
28... Ne5 {[%emt 0:07:14]} (28... Qa3 $5 29. Bc3 dxc3 30. Rd8+ (30. bxa3 $2
Bxa3#) 30... Rxd8 31. bxa3 Bxa3+ 32. Kb1 Rb8+ 33. Ka1 Bb2+ 34. Kb1 Ba3+ 35. Ka1
Bb2+ 36. Kb1 Ba3+ $11) 29. Qa4 {[%emt 0:00:21]} Qd5 {[%emt 0:04:25]} ({Black
should try} 29... Qb6 $14 30. b3 Rc8 31. Rxe4 Qc7) 30. Bf4 {[%emt 0:01:36]} (
30. Bxa5 Nf3 $11) 30... Bb4 {[%emt 0:00:29] [#]} 31. Rg1 {[%emt 0:00:33]} (31.
Re2 $1 $18 {[%cal Yc2c3] Hoping for c3!} Rf8 32. Bxe5 Qxe5 33. Qd7) 31... Rf8
$2 {[%emt 0:01:16] [#]} (31... d3 $1 $14) 32. Rg5 $1 $18 {[%emt 0:00:00]} Rxf4
{[%emt 0:00:59]} 33. Qe8+ {[%emt 0:00:01]} Bf8 {[%emt 0:00:31]} 34. Qxe5 {
[%emt 0:00:39] Chess con chili.} Qf7 {[%emt 0:00:24]} 35. Kb1 {[%emt 0:01:01]}
(35. Qxd4 Qxa2 36. Rb5 h6 $18) (35. Rxd4 Rxf2 36. Rd1 (36. Qxe4 Qxa2 37. Ra4
Rf1+ 38. Kd2 Qxb2 $11) (36. Rxe4 h6 $11) 36... h6 $14) 35... h6 {[%emt 0:00:33]
} 36. Rgg1 {[%emt 0:00:20]} d3 {[%emt 0:00:27]} 37. cxd3 {[%emt 0:00:19]} Rxf2
{[%emt 0:00:33][%cal Yf8a3]} 38. dxe4 {[%emt 0:00:52]} a4 {[%emt 0:00:01]} 39.
Qd5 {[%emt 0:00:22]} Qf4 {[%emt 0:00:36]} 40. Qd3 $2 {[%emt 0:00:37]} (40. a3
$18) 40... a3 $1 $14 {[%emt 0:00:42]} 41. bxa3 {[%emt 0:10:02]} Qf6 {[%emt 0:
23:40]} (41... Qe5 $14 42. Rd2 (42. Qd4 $2 Qb5+ 43. Ka1 Qe2 $19) 42... Rxd2 43.
Qxd2 Qxe4+ 44. Qc2 Qb7+ 45. Qb2 Qe4+ 46. Qc2 Qb7+ 47. Qb2 Qe4+ 48. Ka1 Qxh4)
42. Qd4 {[%emt 0:04:22]} Qf4 {[%emt 0:00:02] [#]} 43. Rd3 {[%emt 0:05:20]} (43.
Ka1 Qh2 44. Rc1 (44. Qd5 Bd6 45. Qa8+ Bb8 46. Rd8+ Kh7) 44... Rxa2+ 45. Kb1
Rxa3 $11) (43. Rg6 $1 $18 {[%cal Rg6h6] and the rest is easy. aiming for Rxh6+!
} Kh7 44. Rb6) 43... Qxh4 {[%emt 0:03:20]} (43... Re2 $16 44. Qd5 (44. Ka1 Qh2
$11) 44... Rxe4) 44. e5 $18 {[%emt 0:02:24]} Rf4 {[%emt 0:04:31]} 45. Qd5 {
[%emt 0:03:01]} Be7 $2 {[%emt 0:00:33]} (45... Qf2 46. Rc1 Qa7) 46. Rdg3 {
[%emt 0:02:35]} Qh5 {[%emt 0:01:04]} 47. Qe6 {[%emt 0:03:22]} (47. Rxg7 Qf5+
48. Kc1 (48. Kb2 $2 Rf2+ 49. Ka1 Rf1+ 50. Rxf1 Qxf1+ 51. Kb2 Kxg7 $19) 48...
Bxa3+ 49. Kd1 Rf1+ 50. Rxf1 (50. Ke2 Rf2+ 51. Ke1 Bb4+) 50... Qxf1+ 51. Kd2
Qf2+ 52. Kd1 Kxg7 $11) 47... Bf8 {[%emt 0:00:34]} (47... Qe8 {was worth a try.}
48. Rb3 (48. Rxg7 Qb5+ 49. Ka1 Rf1+ 50. Rxf1 Qxf1+ 51. Kb2 Qb5+ 52. Ka1 Qf1+
53. Kb2 Qb5+ 54. Ka1 Qf1+ $11) 48... Qf8) 48. Rh3 {[%emt 0:00:36]} Rh4 {
[%emt 0:00:21] [#]} (48... Qf7 $142 49. Qxf7 Rxf7) 49. Rf1 $1 {[%emt 0:02:20]}
Bc5 {[%emt 0:00:40]} (49... Be7 50. Rc3) 50. Rxh4 {[%emt 0:00:00] Weighted
Error Value: White=0.34/Black=0.68} 1-0